Cogmind - Beta 15 *** ADVENTURER MODE // 2025.06.06 @ 16:36:20 Player: triibiis Result: Destroyed by C-40 Crusher with Compactor Performance ------------- Evolutions (4) 2000 Regions Visited (5) 1000 Robots Destroyed (17) 85 Value Destroyed (527) 527 Prototype IDs (7) 140 Alien Tech Used (0) 0 Bonus (232) 232 TOTAL SCORE: 3984 Bonus ------- Registered with UFD 300 Met Optimus in HQ 500 Friendly Fire -568 Cogmind --------- Core Integrity 0/850 Matter 285/300 Energy 100/100 System Corruption 7% Temperature Cool (0) Movement Core (50) Location -6/Waste Parts ------- > --- POWER (3) -------- (None) > --- PROPULSION (4) --- (None) > --- UTILITY (4) ------ (None) > --- WEAPON (4) ------- (None) > --- INVENTORY (5) ---- Compact Wheel Small Storage Unit Vortex Trap DRS Beacon (Ready) Botcube Peak State ------------ > --- POWER ------------ Ion Engine Light Deuterium Engine Improved Deuterium Engine > --- PROPULSION ------- Light Treads Light Treads > --- UTILITY ---------- Improved Heat Sink Large Storage Unit Deep Structural Scanner > --- WEAPON ----------- Guided EMP Blaster Guided EMP Blaster > --- INVENTORY -------- Compact Wheel Small Storage Unit Light Assault Rifle Grenade Launcher CPS Tube Vortex Trap DRS Beacon Botcube [Rating: 44] Favorites ----------- Power Ion Engine Engine Ion Engine Propulsion Wheel Treads Light Treads Wheel Wheel Utility Improved Heat Sink Device Improved Heat Sink Storage Large Storage Unit Weapon Assault Rifle Energy Gun Overtuned Pulse Rifle Energy Cannon Subdweller Beam Cannon Ballistic Gun Assault Rifle Launcher Guided EMP Blaster Special Weapon CPS Tube Slashing Weapon Axe Build | -11 -10 -10 -9 -6 -6 ------- Run | Yrd Mat Sub Scr Fac Was Slots Evolved 8 | . . . . 8 . Power 2 | . . . . 2 . Propulsion 2 | . . . . 2 . Utility 2 | . . . . 2 . Weapon 2 | . . . . 2 . Parts Attached 27 | 6 . 1 10 7 3 Power 5 | 1 . . 1 3 . Engine 5 | 1 . . 1 3 . Core . | . . . . . . Reactor . | . . . . . . Propulsion 7 | 2 . . 3 . 2 Treads 3 | . . . 2 . 1 Leg . | . . . . . . Wheel 4 | 2 . . 1 . 1 Hover . | . . . . . . Flight . | . . . . . . Utility 5 | 1 . 1 2 . 1 Device 3 | . . 1 1 . 1 Storage 2 | 1 . . 1 . . Processor . | . . . . . . Hackware . | . . . . . . Protection . | . . . . . . Artifact . | . . . . . . Weapon 10 | 2 . . 4 4 . Energy Gun 2 | . . . 1 1 . Energy Cannon 1 | . . . 1 . . Ballistic Gun 2 | 2 . . . . . Ballistic Cannon . | . . . . . . Launcher 3 | . . . 1 2 . Special Weapon 1 | . . . 1 . . Impact Weapon . | . . . . . . Slashing Weapon 1 | . . . . 1 . Piercing Weapon . | . . . . . . Special Melee Weapon . | . . . . . . Unidentified Prototypes 1 | . . . . 1 . Parts Lost 18 | . . . 2 14 2 Power 5 | . . . . 5 . Propulsion 5 | . . . 2 1 2 Utility 3 | . . . . 3 . Weapon 5 | . . . . 5 . Highest Loss Streak 13 | . . . 2 13 2 To Critical Strikes 1 | . . . . . 1 Average Backups 7 | 2 4 4 10 4 2 Power . | . 1 1 1 . . Propulsion 2 | 1 2 2 2 1 1 Utility . | . . . 1 1 1 Weapon 3 | . 1 1 4 1 . Tool/Special . | . . . . . . Unused Backups 1 | . . . . 1 . Power . | . . . . . . Propulsion . | . . . . . . Utility . | . . . . . . Weapon . | . . . . . . Tool/Special 1 | . . . . 1 . Average Slot Usage (%) 75 | . 85 98 75 52 7 Engine 13 | . 14 14 14 14 . Treads 2 | . . . 1 10 4 Wheel 22 | . 28 28 26 . 1 Device 11 | . . 12 13 9 2 Storage 12 | . 14 14 14 5 . Ballistic Gun 8 | . 28 28 1 1 . Launcher 1 | . . . . 8 . Peak Build Rating 44 | 6 6 9 18 44 21 Average Rating 12 | 4 6 8 9 29 14 On Entrance 6 | . 6 6 9 15 1 Naked Turns 58 | . . . . 52 6 Heaviest Build 62 | 13 13 14 37 62 15 Greatest Support 40 | 26 26 26 40 40 16 Greatest Overweight (x) 7 | 2 . . 1 7 4 Average Overweight (x) . | . . . . . . Largest Inventory Capacity 15 | 8 8 8 15 15 5 Average Capacity 12 | 7 8 8 14 14 5 Most Carried 15 | 4 4 5 15 11 5 Average Carried 8 | 3 4 4 11 7 5 Final Capacity 15 | 8 8 8 15 5 5 Final Carried 12 | 4 4 5 12 5 5 Class Distribution -------------------- 87% | Mutant 12% | Skirmisher Dominant Class ---------------- Mutant | -10/Materials Mutant | -10/Subcaves Mutant | -9/Scraptown Skirmisher | -6/Factory Mutant | -6/Waste Resources | -11 -10 -10 -9 -6 -6 ----------- Run | Yrd Mat Sub Scr Fac Was Matter Collected 829 | 249 38 114 222 206 . Remotely . | . . . . . . Salvage Created 997 | . 15 83 700 199 . Parts 55 | . . 7 36 12 . Haulers Intercepted . | . . . . . . Recyclers Shooed 2 | . . . . 2 . Parts Field Recycled . | . . . . . . Retrieved Matter . | . . . . . . Parts Self-Destructed 3 | . . 3 . . . Prevented . | . . . . . . Kills | -11 -10 -10 -9 -6 -6 ------- Run | Yrd Mat Sub Scr Fac Was Combat Hostiles Destroyed 10 | . . 1 8 1 . Guns 1 | . . 1 . . . Cannons 3 | . . . 3 . . AOE 5 | . . . 5 . . Classes Destroyed 9 | . 1 1 5 2 . Recycler 1 | . . . . 1 . Watcher 2 | . 1 . . 1 . Sentry 1 | . . . . 1 . Subdweller 1 | . . 1 . . . Explorer 3 | . . . 3 . . Ranger 3 | . . . 3 . . Scrapper 4 | . . . 4 . . Elite 1 | . . . 1 . . Savage 1 | . . . 1 . . Best Kill Streak 5 | . 1 1 5 2 . Combat Bots Only 5 | . . 1 5 1 . Max Kills in Single Turn 6 | . 1 1 6 2 . Gunslinging . | . . . . . . Exploded 2 | . . . 2 . . Melee . | . . . . . . Uniques/NPCs Destroyed . | . . . . . . Combat | -11 -10 -10 -9 -6 -6 -------- Run | Yrd Mat Sub Scr Fac Was Hostile Shots Fired 256 | . 3 6 25 214 8 Missed 92 | . 1 3 6 81 1 Hits 164 | . 2 3 19 133 7 Melee 15 | . . . 2 6 7 Projectile 149 | . 2 3 17 127 . Critical Strikes 16 | . . . 1 13 2 Part Disruptions 1 | . . . . 1 . Damage Taken 2574 | . 36 101 221 1926 290 Core 957 | . 7 31 65 761 93 Absorbed by Shields . | . . . . . . Ignored by Resistances 700 | . 10 17 64 536 73 Core Remaining (%) 79 | 100 . . 58 . . Volleys Fired 81 | . 7 37 14 23 . Largest 2 | . 2 2 2 2 . Hottest 160 | . 40 40 160 50 . Shots Fired 137 | . 13 75 25 24 . Gun 100 | . 13 75 4 8 . Cannon 14 | . . . 14 . . Launcher 23 | . . . 7 16 . Special . | . . . . . . Kinetic 96 | . 13 75 . 8 . Thermal 18 | . . . 18 . . Explosive 8 | . . . 7 1 . Electromagnetic 15 | . . . . 15 . Robot Hit Streak 18 | . 2 6 5 18 . Robot Miss Streak 2 | . 2 1 2 2 . Penetration Max . | . . . . . . Secondary Targets 1 | . . 1 . . . Max Gunslinging Chain 1 | . . 1 . . . Shots Hit Robots 58 | . 6 13 17 22 . Core Hits 47 | . 2 3 25 17 . Critical Kills . | . . . . . . Critical Parts Destroyed . | . . . . . . Critical Strikes 1 | . . . 1 . . Burn 1 | . . . 1 . . Melee Attacks . | . . . . . . Impact . | . . . . . . Slashing . | . . . . . . Piercing . | . . . . . . Sneak Attacks . | . . . . . . Combat Hostiles . | . . . . . . Follow-up Attacks . | . . . . . . Damage Inflicted 1803 | . 66 140 769 790 38 Guns 346 | . 66 140 67 73 . Cannons 241 | . . . 241 . . Explosions 1148 | . . . 461 687 . Melee . | . . . . . . Ramming 68 | . . . . 30 38 Kinetic 279 | . 66 140 . 73 . Thermal 520 | . . . 308 212 . Explosive 585 | . . . 461 124 . Electromagnetic 351 | . . . . 351 . Impact . | . . . . . . Slashing . | . . . . . . Piercing . | . . . . . . Highest Corruption 7 | . 1 1 1 7 7 Average Corruption 1 | . 1 1 1 2 7 Corruption Purged . | . . . . . . Corruption Blocked . | . . . . . . Effects 13 | . 1 5 . 4 3 Message Errors 2 | . . . . 1 1 Matter Fused 4 | . . 1 . 3 . Heat Flow Errors 2 | . . 1 . . 1 Energy Discharges 1 | . . 1 . . . Data Loss (major) 1 | . . . . . 1 Misfires 1 | . . 1 . . . Alerts 1 | . . 1 . . . Weapon Failures 1 | . 1 . . . . Overload Shots . | . . . . . . Overflow Damage 9 | . . . . 9 . Projectiles . | . . . . . . Explosions 9 | . . . . 9 . Melee . | . . . . . . Knockbacks 1 | . . . . 1 . Impact 1 | . . . . 1 . Kinetic . | . . . . . . Secondary . | . . . . . . Self-Inflicted Damage 218 | . . . 45 155 18 Shots 8 | . . . 2 6 . Rammed 15 | . . . . 10 5 Targets Rammed 15 | . . . . 10 5 Kicked . | . . . . . . Crushed . | . . . . . . Highest Temperature 261 | . . 253 261 13 146 Average Temperature 101 | . . 136 104 6 90 Received Heat Transfer 721 | . 12 6 73 630 . Effects 2 | . . . 2 . . Interference 2 | . . . 2 . . Siege Activations . | . . . . . . Martial Activations . | . . . . . . Shielding Activations . | . . . . . . Robots Disrupted . | . . . . . . Combat Hostiles . | . . . . . . Robots Corrupted 1 | . . . . 1 . Combat Hostiles 1 | . . . . 1 . Parts Fried . | . . . . . . Impact Corruptions . | . . . . . . Robots Melted . | . . . . . . Combat Hostiles . | . . . . . . Parts Melted 8 | . . 1 7 . . Heat Transferred 697 | . . . 547 150 . Parts Sabotaged . | . . . . . . Parts Stolen . | . . . . . . Parts Stripped . | . . . . . . Power Chain Reactions . | . . . . . . Alert | -11 -10 -10 -9 -6 -6 ------- Run | Yrd Mat Sub Scr Fac Was Maximum Alert Level . | . . . . . . Low Security (%) 100 | 100 100 . . 100 100 Level 1 . | . . . . . . Level 2 . | . . . . . . Level 3 . | . . . . . . Level 4 . | . . . . . . Level 5 . | . . . . . . High Security . | . . . . . . Max Security . | . . . . . . Peak Influence 72 | . 10 . . 72 8 Initial 8 | . . . . . 8 Average 6 | . . . . 9 1 Influence Increases 146 | . 10 . . 136 . Destroy 0b10 Robot/C 20 | . . . . 20 . Destroy 0b10 Robot/NC 15 | . 5 . . 10 . Destroy Leader 14 | . 2 . . 12 . Successful Hack 3 | . 3 . . . . Disable Machine 27 | . . . . 27 . Destroy Structure 37 | . . . . 37 . Lose Combat Pursuer 30 | . . . . 30 . Influence Decreases 146 | . 10 . . 106 30 Entered New Map 22 | . . . . . 22 Time Decay 98 | . 10 . . 80 8 Lost Part 26 | . . . . 26 . Squads Dispatched 2 | . 1 . . 1 . Investigation 1 | . 1 . . . . Extermination 1 | . . . . 1 . Reinforcement . | . . . . . . Assault . | . . . . . . Garrison . | . . . . . . Intercept . | . . . . . . Searches Triggered . | . . . . . . Construction Impeded . | . . . . . . Haulers Reinforced . | . . . . . . Active Scanning Responses . | . . . . . . Cargo Convoy Interrupts . | . . . . . . Stealth | -11 -10 -10 -9 -6 -6 --------- Run | Yrd Mat Sub Scr Fac Was Distress Signals 1 | . 1 . . . . Communications Jammed . | . . . . . . Distress Signals . | . . . . . . Times Spotted 40 | . 5 5 17 8 5 Peak Tracking Total 6 | . 3 2 5 5 6 Tactical Retreats 1 | . . . . 1 . Traps | -11 -10 -10 -9 -6 -6 ------- Run | Yrd Mat Sub Scr Fac Was Traps Triggered 2 | . . 1 . 1 . Indirectly . | . . . . . . Trap Hack Attempts . | . . . . . . Triggered . | . . . . . . Disarmed . | . . . . . . Reprogrammed . | . . . . . . Reused . | . . . . . . Traps Extracted . | . . . . . . Installed . | . . . . . . Triggered . | . . . . . . Most Traps Carried 1 | . . . 1 1 1 Machines | -11 -10 -10 -9 -6 -6 ---------- Run | Yrd Mat Sub Scr Fac Was Machines Disabled 4 | . . . 1 3 . Max in Single Turn 3 | . . . 1 3 . Machines Repaired . | . . . . . . Machines Dismantled . | . . . . . . Machines Sabotaged . | . . . . . . Overloaded Fab Kills . | . . . . . . Hacking | -11 -10 -10 -9 -6 -6 --------- Run | Yrd Mat Sub Scr Fac Was Machines Accessed 7 | . 1 . 6 . . Terminals 1 | . 1 . . . . Fabricators . | . . . . . . Repair Stations . | . . . . . . Recycling Units . | . . . . . . Scanalyzers . | . . . . . . Garrison Access . | . . . . . . Total Hacks 48 | . 3 . 45 . . Successful 47 | . 2 . 45 . . Failed 1 | . 1 . . . . Catastrophic . | . . . . . . Database Lockouts . | . . . . . . Manual 1 | . 1 . . . . Terminals 3 | . 3 . . . . Fabricators . | . . . . . . Repair Stations . | . . . . . . Recycling Units . | . . . . . . Scanalyzers . | . . . . . . Garrison Access . | . . . . . . Terminal Hacks 47 | . 2 . 45 . . Record 44 | . . . 44 . . Robot Analysis 1 | . 1 . . . . Branch Access Points 1 | . 1 . . . . Proto ID Catalog 1 | . . . 1 . . Fabricator Hacks . | . . . . . . Repair Station Hacks . | . . . . . . Recycling Unit Hacks . | . . . . . . Scanalyzer . | . . . . . . Garrison Access Hacks . | . . . . . . Unauthorized Hacks . | . . . . . . Terminals . | . . . . . . Fabricators . | . . . . . . Repair Stations . | . . . . . . Recycling Units . | . . . . . . Scanalyzers . | . . . . . . Garrison Access . | . . . . . . Data Cores Recovered . | . . . . . . Used . | . . . . . . Hacking Detections 1 | . 1 . . . . Full Trace Events 1 | . 1 . . . . Feedback Events 1 | . 1 . . . . Corruption 1 | . 1 . . . . Feedback Blocked . | . . . . . . Robot Schematics Acquired . | . . . . . . Robots Built . | . . . . . . Authchips . | . . . . . . Time . | . . . . . . Total Robot Build Rating . | . . . . . . Part Schematics Acquired . | . . . . . . Parts Built . | . . . . . . Authchips . | . . . . . . Time . | . . . . . . Total Part Build Rating . | . . . . . . Parts Repaired . | . . . . . . Time . | . . . . . . Parts Recycled . | . . . . . . Recycled Matter . | . . . . . . Retrieved Matter . | . . . . . . Retrieved Components . | . . . . . . Parts Scanalyzed . | . . . . . . Part Schematics Acquired . | . . . . . . Parts Damaged . | . . . . . . Bothacking | -11 -10 -10 -9 -6 -6 ------------ Run | Yrd Mat Sub Scr Fac Was Used RIF Installer . | . . . . . . Robots Hacked . | . . . . . . Non-combat . | . . . . . . Combat . | . . . . . . Robot Hacks Applied . | . . . . . . Relay Couplers Released . | . . . . . . Fabnet Peak Effective % . | . . . . . . Robots Rewired . | . . . . . . Allies Hacked . | . . . . . . Hacks Repelled . | . . . . . . Allies | -11 -10 -10 -9 -6 -6 -------- Run | Yrd Mat Sub Scr Fac Was Total Allies 1 | . . . . . 1 Largest Group 1 | . . . . . 1 Highest-Rated Group 31 | . . . . . 31 Highest-Rated Ally 31 | . . . . . 31 Total Orders . | . . . . . . Ally Attacks 6 | . . . . . 6 Total Damage 108 | . . . . . 108 Kills . | . . . . . . Allies Corrupted . | . . . . . . Allies Melted . | . . . . . . Intel | -11 -10 -10 -9 -6 -6 ------- Run | Yrd Mat Sub Scr Fac Was Active Infowar (turns) 551 | . . . 110 441 . Structural 551 | . . . 110 441 . Robot Analysis Total 1 | . 1 . . . . Derelict Logs Recovered 1 | . . 1 . . . Drone Launches . | . . . . . . Drone Recoveries . | . . . . . . Exploration | -11 -10 -10 -9 -6 -6 ------------- Run | Yrd Mat Sub Scr Fac Was Turns Passed 3384 | 78 113 786 1776 554 77 Spaces Moved 3084 | 77 104 717 1858 252 76 Core 171 | 11 . . . 97 63 Treads 187 | . . . 32 155 . Legs . | . . . . . . Wheels 2726 | 66 104 717 1826 . 13 Hover . | . . . . . . Flight . | . . . . . . Fastest Speed 50 | 50 90 90 90 50 50 Average Speed 98 | 84 90 90 92 184 88 Slowest Speed 400 | 150 90 90 160 400 250 Overloaded Moves . | . . . . . . Propulsion Burnouts . | . . . . . . Robots Hopped . | . . . . . . Potential Cave-ins . | . . . . . . Cave-ins Triggered . | . . . . . . Exploration Rate (%) 28 | 5 18 16 82 4 48 Regions Visited 5 Branch Regions 2 Pre-discovered Areas 1 | . . . 1 . . Known Exits Taken 1 | . . . 1 . . Unknown Exits Taken 3 | 1 1 1 . . . Scrap Searched 3 | . . . 3 . . Spaces Dug . | . . . . . . Terrain Destroyed 95 | . . . 44 51 . Melee . | . . . . . . Projectile 3 | . . . 3 . . AOE 92 | . . . 41 51 . Terrain Rammed . | . . . . . . Walls Destroyed . | . . . . . . Machines Disabled . | . . . . . . Actions | -11 -10 -10 -9 -6 -6 --------- Run | Yrd Mat Sub Scr Fac Was Total 3288 | 86 110 789 1901 318 84 Wait 20 | . . . 6 14 . Move 3080 | 76 103 716 1857 252 76 Hop . | . . . . . . Pick Up 15 | 4 . 1 7 3 . Fast Attach 16 | 6 . 1 3 3 3 Attach 14 | . . . 5 9 . Detach 2 | . . . 2 . . Swap 3 | . . . 3 . . Drop 8 | . . . 4 4 . Fire 81 | . 7 37 14 23 . Melee . | . . . . . . Ram 15 | . . . . 10 5 Kick . | . . . . . . Crush . | . . . . . . Escape Stasis . | . . . . . . Rewire 34 | . . 34 . . . Trap . | . . . . . . Miscellaneous . | . . . . . . Route ------- -11/Scrapyard -10/Materials (discovered 3 exits: [*Mat] / *Min / [*Sub]) -10/Subcaves -9/Scraptown (discovered 2 exits: *Fac x2) -6/Factory -6/Waste History --------- Turn | Location | Event 13 | -11/Scrapyard | Discovered new exit (range 16) 79 | -11/Scrapyard | Entered Materials 80 | -10/Materials | Met a group of wandering Federalists 99 | -10/Materials | Identified exit to Mines 108 | -10/Materials | Discovered new exit (range 12) 176 | -10/Materials | Discovered new exit (range 8) 192 | -10/Materials | Entered Subcaves 193 | -10/Subcaves | Continued accompanying wandering Federalists (5) 225 | -10/Subcaves | Learned Materials terminal intel 266 | -10/Subcaves | Shifting Twisted Machinery released Sub. Beam Cannon 316 | -10/Subcaves | Build established: Mutant 317 | -10/Subcaves | Lost 4 allies 958 | -10/Subcaves | Shifting Twisted Machinery released Sub. Laser 968 | -10/Subcaves | A swath of the cavern ceiling suddenly collapsed 978 | -10/Subcaves | Entered Scraptown 980 | -9/Scraptown | System corruption cleaned by C-Scrubber 1182 | -9/Scraptown | Learned location of Extension (-4) 1269 | -9/Scraptown | Visited The Evicted 1314 | -9/Scraptown | Visited Cyclists 1374 | -9/Scraptown | Visited Spacefarers 1447 | -9/Scraptown | Visited TADAMA 1883 | -9/Scraptown | Visited Awakened 1935 | -9/Scraptown | Visited UFD Registry 1935 | -9/Scraptown | Registered with UFD as "Gearforce" 1975 | -9/Scraptown | Visited Junk Repository 2054 | -9/Scraptown | Received an X-ray algorithm 2203 | -9/Scraptown | Visited Derelict Rescue Squad 2216 | -9/Scraptown | Found DRS Beacon 2273 | -9/Scraptown | Visited Botcube Research 2287 | -9/Scraptown | Found Botcube 2310 | -9/Scraptown | Visited Science Guys 2363 | -9/Scraptown | Visited Cartography Club 2474 | -9/Scraptown | Met Optimus 2474 | -9/Scraptown | Accepted into 0bPrime 2557 | -9/Scraptown | Civil war broke out across Scraptown 2631 | -9/Scraptown | Identified exit to Factory 2633 | -9/Scraptown | Found Deep Structural Scanner 2672 | -9/Scraptown | Lost 10 allies 2754 | -9/Scraptown | Entered Factory 2754 | -6/Factory | Evolved 8 slots: Power x2, Propulsion x2, Utility x2, Weapon x2 2762 | -6/Factory | Murdered 3 allies 2884 | -6/Factory | Discovered new exit (range 13) 3060 | -6/Factory | Build established: Skirmisher 3236 | -6/Factory | Core integrity fell below 50% 3258 | -6/Factory | Core integrity fell below 20% 3287 | -6/Factory | Lost 13 parts (4p1n3u5w) 3308 | -6/Factory | Sucked down chute 3308 | -6/Factory | Entered Waste 3309 | -6/Waste | Met a frightened Derelict 3321 | -6/Waste | Spotted C-40 Crusher 3328 | -6/Waste | Spotted C-40 Crusher 3343 | -6/Waste | Crushed by Compactor (0 parts destroyed, 1 dropped) 3345 | -6/Waste | Spotted C-40 Crusher 3347 | -6/Waste | Spotted C-40 Crusher 3351 | -6/Waste | Spotted C-40 Crusher 3381 | -6/Waste | Crushed by Compactor (1 part destroyed) 3385 | -6/Waste | Destroyed by C-40 Crusher with Compactor Last Messages --------------- HF-WIQ(g) Carbon-fiber Leg crushed. HF-WIQ(g) Imp. Heat Sink crushed. HF-WIQ(g) Lgt. Angular Momentum Engine crushed. HF-WIQ(g) suffers critical hit (Destroy). HF-WIQ(g) destroyed. 54 Matter crushed. M WWJTDLUSOPP#UU:FZEV Lgt. Angular Momentum Engine crushed. Adv. Force Field crushed. Slammed into C-40 Crusher. System corrupted: Heat flow error (+183). Acquired Centrium Wheel. Centrium Wheel crushed. Slammed into C-40 Crusher. Critical hit (Destroy). Broken Hvy. Treads destroyed. Slammed into C-40 Crusher. System corrupted: Substantial component data lost. Slammed into C-40 Crusher. Map ----- +----------------------------------------------------+ | ?????????????????????????????????????????????????? | | ?????????????????????????????????????????????????? | | ?????????????????????????????????????????????????? | | ?????????????????????????????????????????????????? | | ?????????????????????????????????????????????????? | | ###??????######??????######??????????????????????? | | !#??????# #??????# #??????????????????????? | | #??????# #??????# #??????????????????????? | | #??????# #??????# #??????????????????????? | | #??????# #??????# #????????? ????????????? | | ######## ######## ######## ???????????? | | / ???????????? | | ! ??????????? | | ??????????? | | CC ??????????? | | ######## ########CC ######## ?????????????? | | #??????# #??????# #??????????????????????? | | #??????# #??????# CC #??????????????????????? | | #??????# #??????# CC #??????????????????????? | | #??????# #??????# #??????????????????????? | | #??????# #??????# #??????????????????????? | | #??????# #??????# #??????????????????????? | | #??????# #??????# #??????????????????????? | | #??????# #??????#CCCC#??????????????????????? | | #??????# #??????#CCCC#??????????????????????? | | #??????# #??????# CC@#??????????????????????? | | #??????# #??????# CC #??????????????????????? | | ???????? ???????# #??????????????????????? | | ?????????????????????# #??????????????????????? | | ?????????????????????# #??????????????????????? | | ?????????????????????# #??????????????????????? | | ?????????????????????# #??????????????????????? | | ?????????????????????# #??????????????????????? | | ?????????????????????# #??????????????????????? | | ?????????????????????# #??????????????????????? | | ?????????????????????# #??????????????????????? | | ?????????????????????# #??????????????????????? | | ?????????????????????# #??????????????????????? | | ?????????????????????######??????????????????????? | | ?????????????????????????????????????????????????? | | ?????????????????????????????????????????????????? | | ?????????????????????????????????????????????????? | | ?????????????????????????????????????????????????? | | ?????????????????????????????????????????????????? | | ?????????????????????????????????????????????????? | | ?????????????????????????????????????????????????? | | ?????????????????????????????????????????????????? | | ?????????????????????????????????????????????????? | | ?????????????????????????????????????????????????? | | ?????????????????????????????????????????????????? | +----------------------------------------------------+ Best States ------------- Heat Dissipation 51 Energy Generation 30 Energy Capacity 480 Matter Stores 300 Matter Capacity 300 Sight Range 16 Terrain Scan Density 10 Resistance: KI 20 Resistance: TH 20 Resistance: EX 20 Resistance: EM 20 Resistance: I 20 Resistance: S 20 Resistance: P 20 Evasion (%) 50 Recoil Reduction 2 Offensive Hacking 10 Item Schematics ----------------- None Robot Schematics ------------------ None Fabricated ------------ Nothing Repaired ---------- Nothing Alien Tech Used ----------------- None Achievements -------------- None Challenges ------------ None Game ------ Seed OvertunedChipThruster Manual? 0 Play Time 00:48:16 Cumulative 9.2 hours Start 2025.06.06 @ 14:03:12 End 2025.06.06 @ 16:36:20 Sessions 1 Manual Loads 0 Difficulty Adventurer Special Mode None Game No. 21 Rogue 0 Adventurer 21 Explorer 0 Win Type - Total 0 Types 0/0/0/0/0/0/0/0/0/0 Lore% 15 Gallery% 12 Achievement% 16 Wizard Run 0 Options --------- Layout 1 ASCII 0 Keyboard 0 Movement Arrows Keybinds 0 Fullscreen 1 Font 36/Smallcaps Map View 50x43 Zoom Use 0% Tactical HUD 0 Map Filters NONE Filters NONE Steam 1 RUN: f42cd6a1-8a7e-4e9d-81f0-b21b7f3e0ca9